Cogmind - Beta 15 @@@ ROGUE MODE // 2025.09.28 @ 02:56:54 Player: kiul Result: Destroyed by Y-54 Guardian with Gatling Laser Performance ------------- Evolutions (3) 1500 Regions Visited (8) 1600 Robots Destroyed (96) 480 Value Destroyed (3961) 3961 Prototype IDs (26) 520 Alien Tech Used (0) 0 Bonus (885) 885 TOTAL SCORE: 8946 Bonus ------- High Alert Combat Kills 468 Entered Garrisons 200 Aligned with FarCom 300 Friendly Fire -83 Cogmind --------- Core Integrity 0/700 Matter 255/300 Energy 49/275 System Corruption 6% Temperature Cool (65) Movement Core (450) Ox8 Location -7/Storage Parts ------- > --- POWER (2) -------- Deuterium Engine > --- PROPULSION (3) --- (None) > --- UTILITY (5) ------ Improved Heat Sink Medium Storage Unit Advanced Visual Processing Unit Armor Integrity Analyzer > --- WEAPON (3) ------- Beam Rifle Beam Rifle > --- INVENTORY (10) --- Improved Heat Sink Relay Coupler [Grunt] (24) Particle Gun Spear Peak State ------------ > --- POWER ------------ Light Deuterium Engine Light Nuclear Core > --- PROPULSION ------- Aluminum Leg Aluminum Leg Carbon-fiber Leg > --- UTILITY ---------- Small Storage Unit Advanced Visual Processing Unit Armor Integrity Analyzer Recoil Stabilizer Kinecellerator > --- WEAPON ----------- Gauss Cannon Mini Assault Cannon Longsword +1 > --- INVENTORY -------- Light Nuclear Core Aluminum Leg Aluminum Leg Medium Storage Unit Hacking Suite Relay Coupler [Grunt] Lightning Gun Gauss Cannon [Rating: 45] Favorites ----------- Power Light Nuclear Core Engine Ion Engine Power Core Light Nuclear Core Propulsion Aluminum Leg Treads Light Treads Leg Aluminum Leg Wheel Compact Wheel Utility Small Storage Unit Device Recoil Stabilizer Storage Small Storage Unit Processor Armor Integrity Analyzer Protection Light Armor Plating Weapon Longsword +1 Energy Gun Heavy Particle Gun Ballistic Gun Gauss Rifle Ballistic Cannon Gauss Cannon Launcher Rocket Launcher Slashing Weapon Longsword +1 Build | -11 -10 -10 -10 -9 -8 -8 -7 -7 ------- Run | Yrd Mat Min Exi Min Mat Gar Fac Sto Slots Evolved 6 | . . . . . 4 . 2 . Power 1 | . . . . . 1 . . . Propulsion 1 | . . . . . 1 . . . Utility 3 | . . . . . 2 . 1 . Weapon 1 | . . . . . . . 1 . Parts Attached 89 | 9 2 1 . . 14 26 16 21 Power 18 | 1 . . . . 2 9 2 4 Engine 10 | 1 . . . . 2 3 2 2 Core 8 | . . . . . . 6 . 2 Reactor . | . . . . . . . . . Propulsion 22 | 5 . . . . 3 8 3 3 Treads 3 | 1 . . . . . 1 . 1 Leg 17 | 2 . . . . 3 7 3 2 Wheel 2 | 2 . . . . . . . . Hover . | . . . . . . . . . Flight . | . . . . . . . . . Utility 26 | 1 1 . . . 5 7 5 7 Device 8 | . . . . . 2 1 3 2 Storage 2 | 1 . . . . . . . 1 Processor 5 | . 1 . . . 1 2 . 1 Hackware . | . . . . . . . . . Protection 11 | . . . . . 2 4 2 3 Artifact . | . . . . . . . . . Weapon 23 | 2 1 1 . . 4 2 6 7 Energy Gun 6 | 1 . . . . . . 1 4 Energy Cannon . | . . . . . . . . . Ballistic Gun 7 | 1 . . . . . 2 1 3 Ballistic Cannon 5 | . 1 . . . 1 . 3 . Launcher 3 | . . 1 . . 1 . 1 . Special Weapon . | . . . . . . . . . Impact Weapon . | . . . . . . . . . Slashing Weapon 2 | . . . . . 2 . . . Piercing Weapon . | . . . . . . . . . Special Melee Weapon . | . . . . . . . . . Unidentified Prototypes 3 | . . . . . 1 . 1 1 Parts Lost 46 | . . . . . 1 14 8 23 Power 9 | . . . . . . 4 2 3 Propulsion 13 | . . . . . 1 5 1 6 Utility 12 | . . . . . . 3 4 5 Weapon 12 | . . . . . . 2 1 9 Highest Loss Streak 11 | . . . . . 1 11 4 9 To Critical Strikes . | . . . . . . . . . Average Backups 6 | 1 4 6 6 7 6 7 7 6 Power 1 | . 2 2 2 2 1 2 1 . Propulsion . | . . 1 1 1 . . . . Utility 2 | . . 1 1 1 . 2 3 2 Weapon 2 | . 1 2 2 3 4 2 2 3 Tool/Special . | . . . . . . . . . Unused Backups 15 | . . . . . 2 4 5 4 Power 4 | . . . . . 1 3 . . Propulsion 1 | . . . . . 1 . . . Utility 7 | . . . . . . . 5 2 Weapon 3 | . . . . . . 1 . 2 Tool/Special . | . . . . . . . . . Average Slot Usage (%) 93 | . 88 100 100 100 94 95 95 77 Engine 9 | . 14 14 14 14 17 10 7 3 Core 4 | . . . . . . 6 6 5 Leg 22 | . 28 28 28 28 25 22 22 9 Device 4 | . . . . . 7 1 7 3 Storage 8 | . 14 14 14 14 9 9 6 6 Processor 15 | . 3 14 14 14 9 18 15 17 Protection 4 | . . . . . 6 5 3 7 Energy Gun 1 | . 11 . . . . . . 5 Ballistic Gun 2 | . 14 10 . . . 2 2 5 Ballistic Cannon 5 | . 2 14 14 14 2 . 10 5 Launcher 2 | . . 4 14 14 4 . 1 . Slashing Weapon 8 | . . . . . 10 14 7 2 Peak Build Rating 45 | 6 7 8 9 9 33 36 45 41 Average Rating 28 | 4 6 7 8 9 25 31 40 31 On Entrance 15 | . 6 7 8 9 9 33 30 36 Naked Turns . | . . . . . . . . . Heaviest Build 43 | 12 14 17 17 17 36 39 43 43 Greatest Support 45 | 26 20 20 20 20 45 45 35 40 Greatest Overweight (x) 11 | 1 . . . . . 8 1 11 Average Overweight (x) . | . . . . . . . . 1 Largest Inventory Capacity 10 | 8 8 8 8 8 8 8 8 10 Average Capacity 8 | 6 8 8 8 8 8 8 7 9 Most Carried 10 | 4 6 6 7 7 8 8 8 10 Average Carried 6 | 1 4 6 6 7 6 7 7 6 Final Capacity 10 | 8 8 8 8 8 8 8 5 10 Final Carried 8 | 3 6 6 7 7 8 8 5 4 Class Distribution -------------------- 59% | Scavenger-Mutant 22% | Mutant 8% | Gladiator 4% | Assassin 3% | Scavenger-Skirmisher Dominant Class ---------------- Mutant | -10/Materials Mutant | -10/Mines Mutant | -10/Exiles Mutant | -9/Mines Gladiator | -8/Materials Scavenger-Mutant | -8/Garrison Scavenger-Mutant | -7/Factory Scavenger-Mutant | -7/Storage Resources | -11 -10 -10 -10 -9 -8 -8 -7 -7 ----------- Run | Yrd Mat Min Exi Min Mat Gar Fac Sto Matter Collected 2179 | 191 69 93 . 30 244 509 601 442 Remotely . | . . . . . . . . . Salvage Created 3734 | 54 158 87 . . 330 1548 850 707 Parts 213 | 2 12 1 . . 22 90 46 40 Haulers Intercepted 3 | . . . . . . . 1 2 Recyclers Shooed 3 | . . . . . . . 2 1 Parts Field Recycled 22 | . . . . . . . 22 . Retrieved Matter 135 | . . . . . . . 135 . Parts Self-Destructed . | . . . . . . . . . Prevented . | . . . . . . . . . Kills | -11 -10 -10 -10 -9 -8 -8 -7 -7 ------- Run | Yrd Mat Min Exi Min Mat Gar Fac Sto Combat Hostiles Destroyed 80 | . 6 2 . . 10 37 11 14 Melee 35 | . . . . . 4 25 4 2 Guns 14 | . 6 . . . . . 1 7 Cannons 8 | . . 2 . . . . 3 3 AOE 21 | . . . . . 6 11 2 2 Classes Destroyed 12 | 1 2 . . . 2 2 5 . Worker 4 | . . . . . 1 . 3 . Builder 5 | . . . . . . . 5 . Hauler 3 | . . . . . . . 1 2 Recycler 2 | 1 . . . . . . . 1 Watcher 2 | . . . . . . . 2 . Swarmer 19 | . 3 . . . 4 9 . 3 Grunt 35 | . 3 2 . . 2 17 5 6 Brawler 2 | . . . . . . 1 1 . Duelist 1 | . . . . . . . 1 . Sentry 16 | . . . . . 4 8 2 2 Specialist 2 | . . . . . . 2 . . Programmer 5 | . . . . . . . 2 3 Best Kill Streak 13 | 1 6 2 . . 5 13 8 6 Combat Bots Only 13 | . 6 2 . . 4 13 4 5 Max Kills in Single Turn 3 | 1 2 1 . . 3 2 2 2 Gunslinging 1 | . 1 . . . . . . . Exploded 3 | . . . . . 3 2 1 2 Melee 1 | . . . . . 1 1 1 1 Uniques/NPCs Destroyed . | . . . . . . . . . Combat | -11 -10 -10 -10 -9 -8 -8 -7 -7 -------- Run | Yrd Mat Min Exi Min Mat Gar Fac Sto Hostile Shots Fired 824 | . 24 9 . . 19 215 148 409 Missed 296 | . 5 . . . 5 67 67 152 Hits 528 | . 19 9 . . 14 148 81 257 Melee 6 | . . . . . . . 6 . Projectile 522 | . 19 9 . . 14 148 75 257 Critical Strikes 9 | . . . . . 1 2 3 3 Part Disruptions 1 | . . . . . . . 1 . Damage Taken 6647 | . 179 111 . . 302 2159 1123 2773 Core 1258 | . 27 21 . . 34 474 101 601 Absorbed by Shields . | . . . . . . . . . Redirected to Shielding 39 | . . . . . . . 3 36 Core Remaining (%) 62 | 100 . . . 80 . 7 . . Volleys Fired 151 | 4 14 5 . . 10 29 38 51 Largest 3 | 2 2 2 . . 2 1 2 3 Hottest 167 | 60 60 50 . . 63 36 95 167 Shots Fired 271 | 8 28 10 . . 15 29 75 106 Gun 130 | 8 28 5 . . . 8 10 71 Cannon 101 | . . 5 . . 9 . 52 35 Launcher 40 | . . . . . 6 21 13 . Special . | . . . . . . . . . Kinetic 162 | 4 14 10 . . 9 8 58 59 Thermal 54 | 4 14 . . . . . . 36 Explosive 13 | . . . . . 6 7 . . Electromagnetic 42 | . . . . . . 14 17 11 Robot Hit Streak 9 | 6 7 8 . . 6 2 4 9 Robot Miss Streak 5 | 1 2 1 . . 2 2 5 4 Penetration Max 1 | . . . . . . . 1 1 Secondary Targets 2 | . 1 . . . . . . 1 Max Gunslinging Chain 1 | . 1 . . . . . . 1 Shots Hit Robots 239 | 6 19 9 . . 14 60 64 67 Core Hits 133 | 2 10 5 . . 13 43 29 31 Critical Kills . | . . . . . . . . . Critical Parts Destroyed . | . . . . . . . . . Critical Strikes 15 | . . 1 . . 1 2 5 6 Burn 1 | . . . . . . . . 1 Blast 9 | . . 1 . . . . 3 5 Sever 5 | . . . . . 1 2 2 . Melee Attacks 102 | . . . . . 6 60 27 9 Impact . | . . . . . . . . . Slashing 102 | . . . . . 6 60 27 9 Piercing . | . . . . . . . . . Sneak Attacks 4 | . . . . . 1 . 1 2 Combat Hostiles 1 | . . . . . 1 . . . Follow-up Attacks 2 | . . . . . . 2 . . Damage Inflicted 9319 | 63 197 113 . 6 895 3280 2611 2154 Guns 1186 | 63 197 36 . . . . 126 764 Cannons 1683 | . . 77 . . 93 . 870 643 Explosions 2350 | . . . . . 501 931 570 348 Melee 4092 | . . . . . 301 2349 1045 397 Ramming 8 | . . . . 6 . . . 2 Kinetic 2147 | 29 85 113 . . 93 . 933 894 Thermal 635 | 34 112 . . . . 35 56 398 Explosive 1136 | . . . . . 501 287 . 348 Electromagnetic 1301 | . . . . . . 609 577 115 Impact . | . . . . . . . . . Slashing 4092 | . . . . . 301 2349 1045 397 Piercing . | . . . . . . . . . Highest Corruption 6 | . . . . . 1 1 3 6 Average Corruption 1 | . . . . . 1 1 1 4 Corruption Purged . | . . . . . . . . . Corruption Blocked . | . . . . . . . . . Effects 42 | . . . . . 4 6 16 16 Message Errors 7 | . . . . . 1 . 4 2 Matter Fused 8 | . . . . . 1 1 3 3 Heat Flow Errors 7 | . . . . . 1 2 2 2 Energy Discharges 6 | . . . . . . 2 1 3 Parts Fused 1 | . . . . . . . 1 . Data Loss (minor) 4 | . . . . . . 1 2 1 Data Loss (major) 2 | . . . . . . . 2 . Misfires 3 | . . . . . . . 1 2 Alerts 3 | . . . . . 1 . . 2 Weapon Failures 1 | . . . . . . . . 1 Overload Shots . | . . . . . . . . . Overflow Damage 359 | . . . . . 55 163 71 70 Projectiles 54 | . . . . . 11 . . 43 Explosions 75 | . . . . . 42 18 . 15 Melee 230 | . . . . . 2 145 71 12 Knockbacks 8 | . . 1 . . 1 . 3 3 Impact . | . . . . . . . . . Kinetic 8 | . . 1 . . 1 . 3 3 Secondary . | . . . . . . . . . Self-Inflicted Damage 290 | . . . . . 27 214 . 49 Shots 9 | . . . . . 1 7 . 1 Rammed 1 | . . . . . . . . 1 Targets Rammed 3 | . 1 . . 1 . . . 1 Kicked 2 | . 1 . . 1 . . . . Crushed . | . . . . . . . . . Highest Temperature 436 | 20 64 45 . . 130 221 436 235 Average Temperature 75 | 15 26 28 . . 37 64 101 74 Received Heat Transfer 1884 | . 60 63 . . 99 765 357 540 Effects 4 | . . . . . . . 1 3 Shutdowns 1 | . . . . . . . 1 . Interference 3 | . . . . . . . . 3 Siege Activations . | . . . . . . . . . Martial Activations . | . . . . . . . . . Shielding Activations . | . . . . . . . . . Robots Disrupted . | . . . . . . . . . Combat Hostiles . | . . . . . . . . . Robots Corrupted 2 | . . . . . . 1 1 . Combat Hostiles 2 | . . . . . . 1 1 . Parts Fried 6 | . . . . . . 3 3 . Impact Corruptions . | . . . . . . . . . Robots Melted . | . . . . . . . . . Combat Hostiles . | . . . . . . . . . Parts Melted 2 | . . . . . . . 1 1 Heat Transferred 1326 | 75 250 . . . . 50 100 851 Parts Sabotaged . | . . . . . . . . . Parts Stolen . | . . . . . . . . . Parts Stripped . | . . . . . . . . . Power Chain Reactions 5 | . . . . . . 3 2 . Alert | -11 -10 -10 -10 -9 -8 -8 -7 -7 ------- Run | Yrd Mat Min Exi Min Mat Gar Fac Sto Maximum Alert Level 4 | . . . . . . 4 2 1 Low Security (%) 27 | 100 100 100 . 100 100 8 . 17 Level 1 24 | . . . . . . 2 39 82 Level 2 33 | . . . . . . 43 60 . Level 3 13 | . . . . . . 40 . . Level 4 1 | . . . . . . 4 . . Level 5 . | . . . . . . . . . High Security . | . . . . . . . . . Max Security . | . . . . . . . . . Peak Influence 1141 | 5 120 84 . . 118 1141 598 308 Initial 598 | . . 34 . . . 59 598 213 Average 401 | . 54 52 . . 55 674 434 242 Influence Increases 2793 | 5 140 50 . . 379 1222 526 471 Destroy 0b10 Robot/C 1600 | . 120 40 . . 200 740 220 280 Destroy 0b10 Robot/NC 80 | 5 . . . . 5 . 55 15 Destroy Leader 260 | . 20 10 . . 60 20 66 84 Successful Hack 69 | . . . . . 20 37 12 . Disable Machine 150 | . . . . . . . 120 30 Anti-Garrison Action 350 | . . . . . . 350 . . Destroy Structure 179 | . . . . . 49 75 23 32 Partial Spotted 15 | . . . . . . . . 15 Lose Combat Pursuer 90 | . . . . . 45 . 30 15 Influence Decreases 2689 | 5 50 116 24 . 288 172 1197 837 Entered New Map 912 | . . 56 24 . . 32 543 257 Time Decay 1325 | 5 50 60 . . 286 . 574 350 Lost Part 452 | . . . . . 2 140 80 230 Squads Dispatched 14 | . 2 . . . 1 . 5 6 Investigation 2 | . 1 . . . . . 1 . Extermination 5 | . . . . . . . 3 2 Reinforcement 4 | . 1 . . . 1 . 1 1 Assault . | . . . . . . . . . Garrison 3 | . . . . . . . . 3 Intercept . | . . . . . . . . . Searches Triggered . | . . . . . . . . . Construction Impeded 1 | . . . . . . . 1 . Haulers Reinforced 1 | . . . . . . . . 1 Active Scanning Responses . | . . . . . . . . . Cargo Convoy Interrupts . | . . . . . . . . . Stealth | -11 -10 -10 -10 -9 -8 -8 -7 -7 --------- Run | Yrd Mat Min Exi Min Mat Gar Fac Sto Distress Signals 1 | . 1 . . . . . . . Communications Jammed . | . . . . . . . . . Distress Signals . | . . . . . . . . . Times Spotted 96 | . 8 2 . . 13 39 14 20 Peak Tracking Total 8 | . 6 2 . . 4 8 4 5 Tactical Retreats 6 | . . . . . 3 . 2 1 Traps | -11 -10 -10 -10 -9 -8 -8 -7 -7 ------- Run | Yrd Mat Min Exi Min Mat Gar Fac Sto Traps Triggered 7 | . 1 . . . 1 2 1 2 Indirectly . | . . . . . . . . . Trap Hack Attempts . | . . . . . . . . . Triggered . | . . . . . . . . . Disarmed . | . . . . . . . . . Reprogrammed . | . . . . . . . . . Reused . | . . . . . . . . . Traps Extracted . | . . . . . . . . . Installed . | . . . . . . . . . Triggered . | . . . . . . . . . Machines | -11 -10 -10 -10 -9 -8 -8 -7 -7 ---------- Run | Yrd Mat Min Exi Min Mat Gar Fac Sto Machines Disabled 13 | . . . . . . 3 8 2 Max in Single Turn 3 | . . . . . . 1 3 2 Garrison Relay 3 | . . . . . . 3 . . Machines Repaired . | . . . . . . . . . Machines Dismantled . | . . . . . . . . . Machines Sabotaged . | . . . . . . . . . Overloaded Fab Kills . | . . . . . . . . . Hacking | -11 -10 -10 -10 -9 -8 -8 -7 -7 --------- Run | Yrd Mat Min Exi Min Mat Gar Fac Sto Machines Accessed 18 | . . . 4 . 4 4 5 1 Terminals 9 | . . . . . 2 4 2 1 Fabricators . | . . . . . . . . . Repair Stations 1 | . . . . . . . 1 . Recycling Units 2 | . . . . . 1 . 1 . Scanalyzers 1 | . . . . . . . 1 . Garrison Access 1 | . . . . . 1 . . . Total Hacks 58 | . . . 27 . 10 7 12 2 Successful 41 | . . . 27 . 6 3 5 . Failed 17 | . . . . . 4 4 7 2 Catastrophic 2 | . . . . . 1 1 . . Database Lockouts . | . . . . . . . . . Manual 7 | . . . 1 . 3 1 2 . Terminals 22 | . . . . . 8 7 5 2 Fabricators . | . . . . . . . . . Repair Stations 3 | . . . . . . . 3 . Recycling Units 3 | . . . . . 1 . 2 . Scanalyzers 2 | . . . . . . . 2 . Garrison Access 1 | . . . . . 1 . . . Terminal Hacks 35 | . . . 27 . 4 3 1 . Record 27 | . . . 26 . . . 1 . Open Door 1 | . . . . . . 1 . . Branch Access Points 1 | . . . . . 1 . . . Registered Components 1 | . . . . . 1 . . . Zone Layout 2 | . . . . . 2 . . . Patrol Navigation 1 | . . . . . . 1 . . Security Stations 1 | . . . . . . 1 . . Proto ID Catalog 1 | . . . 1 . . . . . Fabricator Hacks . | . . . . . . . . . Repair Station Hacks 1 | . . . . . . . 1 . Scan Component 1 | . . . . . . . 1 . Recycling Unit Hacks 3 | . . . . . 1 . 2 . Report Inventory 2 | . . . . . 1 . 1 . Retrieve Matter 1 | . . . . . . . 1 . Scanalyzer 1 | . . . . . . . 1 . Insert Component 1 | . . . . . . . 1 . Garrison Access Hacks 1 | . . . . . 1 . . . Unlock Access 1 | . . . . . 1 . . . Unauthorized Hacks . | . . . . . . . . . Terminals . | . . . . . . . . . Fabricators . | . . . . . . . . . Repair Stations . | . . . . . . . . . Recycling Units . | . . . . . . . . . Scanalyzers . | . . . . . . . . . Garrison Access . | . . . . . . . . . Data Cores Recovered . | . . . . . . . . . Used . | . . . . . . . . . Hacking Detections 10 | . . . . . 2 3 4 1 Full Trace Events 1 | . . . . . . . 1 . Feedback Events . | . . . . . . . . . Feedback Blocked . | . . . . . . . . . Robot Schematics Acquired . | . . . . . . . . . Robots Built . | . . . . . . . . . Authchips . | . . . . . . . . . Time . | . . . . . . . . . Total Robot Build Rating . | . . . . . . . . . Part Schematics Acquired . | . . . . . . . . . Parts Built . | . . . . . . . . . Authchips . | . . . . . . . . . Time . | . . . . . . . . . Total Part Build Rating . | . . . . . . . . . Parts Repaired . | . . . . . . . . . Time . | . . . . . . . . . Parts Recycled . | . . . . . . . . . Recycled Matter . | . . . . . . . . . Retrieved Matter 109 | . . . . . . . 109 . Retrieved Components . | . . . . . . . . . Parts Scanalyzed . | . . . . . . . . . Part Schematics Acquired . | . . . . . . . . . Parts Damaged . | . . . . . . . . . Bothacking | -11 -10 -10 -10 -9 -8 -8 -7 -7 ------------ Run | Yrd Mat Min Exi Min Mat Gar Fac Sto Used RIF Installer . | . . . . . . . . . Robots Hacked . | . . . . . . . . . Non-combat . | . . . . . . . . . Combat . | . . . . . . . . . Robot Hacks Applied . | . . . . . . . . . Relay Couplers Released 15 | . . . . . . 11 . 4 Machine Destruction 11 | . . . . . . 11 . . Programmers 4 | . . . . . . . . 4 Fabnet Peak Effective % . | . . . . . . . . . Robots Rewired . | . . . . . . . . . Allies Hacked . | . . . . . . . . . Hacks Repelled . | . . . . . . . . . Allies | -11 -10 -10 -10 -9 -8 -8 -7 -7 -------- Run | Yrd Mat Min Exi Min Mat Gar Fac Sto Total Allies . | . . . . . . . . . Largest Group . | . . . . . . . . . Highest-Rated Group . | . . . . . . . . . Highest-Rated Ally . | . . . . . . . . . Initial Warlord ECA Mod 8 | . . . . . . . 4 4 Total Orders . | . . . . . . . . . Ally Attacks . | . . . . . . . . . Total Damage . | . . . . . . . . . Kills . | . . . . . . . . . Allies Corrupted . | . . . . . . . . . Allies Melted . | . . . . . . . . . Intel | -11 -10 -10 -10 -9 -8 -8 -7 -7 ------- Run | Yrd Mat Min Exi Min Mat Gar Fac Sto Active Infowar (turns) 4342 | . . . . . 324 1496 1741 781 Optics 4018 | . . . . . . 1496 1741 781 Sensors 324 | . . . . . 324 . . . Robot Analysis Total . | . . . . . . . . . Derelict Logs Recovered . | . . . . . . . . . Drone Launches . | . . . . . . . . . Drone Recoveries . | . . . . . . . . . Exploration | -11 -10 -10 -10 -9 -8 -8 -7 -7 ------------- Run | Yrd Mat Min Exi Min Mat Gar Fac Sto Turns Passed 6205 | 190 185 131 517 42 724 1894 1741 781 Spaces Moved 3728 | 144 116 97 431 35 495 1251 917 242 Core 44 | 6 . . . . . 8 . 30 Treads 139 | 16 . . . . . 59 . 64 Legs 3479 | 56 116 97 431 35 495 1184 917 148 Wheels 66 | 66 . . . . . . . . Hover . | . . . . . . . . . Flight . | . . . . . . . . . Fastest Speed 50 | 50 120 120 120 120 120 120 120 120 Average Speed 140 | 109 120 120 120 120 123 130 160 230 Slowest Speed 600 | 190 120 120 120 120 125 450 190 600 Overloaded Moves . | . . . . . . . . . Propulsion Burnouts . | . . . . . . . . . Robots Hopped . | . . . . . . . . . Potential Cave-ins . | . . . . . . . . . Cave-ins Triggered . | . . . . . . . . . Exploration Rate (%) 30 | 6 36 28 44 10 25 75 17 35 Regions Visited 8 Branch Regions 4 Pre-discovered Areas . | . . . . . . . . . Known Exits Taken 1 | . . . . . 1 . . . Unknown Exits Taken 6 | 1 1 1 1 1 . . 1 . Scrap Searched 1 | . . . . 1 . . . . Spaces Dug 10 | . . . . . 10 . . . Terrain Destroyed 133 | . . . . . 51 29 23 30 Melee . | . . . . . . . . . Projectile 36 | . . . . . . . 21 15 AOE 97 | . . . . . 51 29 2 15 Terrain Rammed . | . . . . . . . . . Walls Destroyed . | . . . . . . . . . Machines Disabled . | . . . . . . . . . Actions | -11 -10 -10 -10 -9 -8 -8 -7 -7 --------- Run | Yrd Mat Min Exi Min Mat Gar Fac Sto Total 4316 | 165 135 102 431 35 586 1423 1085 354 Wait 138 | . . . . . 47 26 52 13 Move 3720 | 143 115 96 430 34 494 1250 916 242 Hop . | . . . . . . . . . Pick Up 42 | 3 3 . 1 . 6 10 10 9 Fast Attach 35 | 7 1 . . . 3 9 5 10 Attach 25 | . . . . . 3 5 7 10 Detach 3 | 1 . . . . . . 1 1 Swap 59 | 5 1 1 . . 11 19 16 6 Drop 39 | 2 . . . . 6 16 13 2 Fire 151 | 4 14 5 . . 10 29 38 51 Melee 98 | . . . . . 6 56 27 9 Ram 1 | . . . . . . . . 1 Kick 2 | . 1 . . 1 . . . . Crush . | . . . . . . . . . Escape Stasis 3 | . . . . . . 3 . . Rewire . | . . . . . . . . . Trap . | . . . . . . . . . Miscellaneous . | . . . . . . . . . Route ------- -11/Scrapyard -10/Materials -10/Mines (discovered 2 exits: [*Mat] / *Exi) -10/Exiles -9/Mines -8/Materials -8/Garrison (discovered 4 exits: *Fac x3 / [*Mat]) -7/Factory -7/Storage (discovered 1 exit: [*Fac]) History --------- Turn | Location | Event 33 | -11/Scrapyard | Discovered new exit (range 15) 191 | -11/Scrapyard | Entered Materials 268 | -10/Materials | Discovered new exit (range 15) 306 | -10/Materials | Build established: Mutant 376 | -10/Materials | Entered Mines 411 | -10/Mines | Discovered new exit (range 13) 457 | -10/Mines | Received a Rocket Launcher from a helpful Derelict 499 | -10/Mines | Deemed a non-threat by the Exiles lab entrance 500 | -10/Mines | Discovered new exit (range 5) 507 | -10/Mines | Entered Exiles 537 | -10/Exiles | Met 8R-AWN 557 | -10/Exiles | Met EX-HEX 589 | -10/Exiles | Met EX-BIN 647 | -10/Exiles | Aligned with FarCom system 648 | -10/Exiles | Given EX-Vault access code 678 | -10/Exiles | Opened EX-Vault 699 | -10/Exiles | Warned to stay clear of 0b10 Research branches 889 | -10/Exiles | Found Longsword +1 1008 | -10/Exiles | Discovered new exit (range 14) 1024 | -10/Exiles | Left Exiles lab with Longsword +1 1024 | -10/Exiles | Entered Mines 1047 | -9/Mines | Discovered new exit (range 12) 1066 | -9/Mines | Entered Materials 1066 | -8/Materials | Evolved 4 slots: Power x1, Propulsion x1, Utility x2 1767 | -8/Materials | Build established: Gladiator 1789 | -8/Materials | Identified exit to Garrison 1790 | -8/Materials | Entered Garrison 1816 | -8/Garrison | Triggered checkpoint 1861 | -8/Garrison | Garrison Relay disabled 1948 | -8/Garrison | Triggered checkpoint 1990 | -8/Garrison | Triggered checkpoint 2045 | -8/Garrison | Destroyed 13 combat bots 2061 | -8/Garrison | Core integrity fell below 50% 2097 | -8/Garrison | Lost 11 parts (3p4n2u2w) 2446 | -8/Garrison | Triggered checkpoint 2479 | -8/Garrison | Build established: Scavenger-Mutant 2481 | -8/Garrison | Discovered new exit (range 9) 2520 | -8/Garrison | Triggered checkpoint 2627 | -8/Garrison | Learned Factory security intel 2688 | -8/Garrison | Triggered checkpoint 2726 | -8/Garrison | Garrison Relay disabled 2767 | -8/Garrison | Discovered new exit (range 11) 2807 | -8/Garrison | Discovered new exit (range 5) 2810 | -8/Garrison | Triggered checkpoint 2883 | -8/Garrison | Core integrity fell below 20% 3042 | -8/Garrison | Discovered new exit (range 12) 3074 | -8/Garrison | Triggered checkpoint 3145 | -8/Garrison | Garrison Relay disabled 3684 | -8/Garrison | Entered Factory 3684 | -7/Factory | Evolved 2 slots: Utility x1, Weapon x1 5355 | -7/Factory | Lost 4 parts (1p2u1w) 5355 | -7/Factory | Discovered new exit (range 18) 5425 | -7/Factory | Entered Storage 5453 | -7/Storage | Allied Derelicts emerged from ambush trap array 5555 | -7/Storage | Garrison activated, responded to threat 5626 | -7/Storage | Lost 3 allies 5743 | -7/Storage | Lost 9 parts (1p3n2u3w) 5858 | -7/Storage | Core integrity fell below 50% 6023 | -7/Storage | Garrison activated, responded to threat 6144 | -7/Storage | Discovered new exit (range 20) 6186 | -7/Storage | Core integrity fell below 20% 6206 | -7/Storage | Destroyed by Y-54 Guardian with Gatling Laser Last Messages --------------- 06026_ P-60 Hacker destroyed. 06029_ U-05 Engineer lays Concrete. 06044_ System corrupted: Heat flow error (+137). 06059_ Acquired 28 matter. 06070_ System corrupted: Heat flow error (+143). 06089_ Acquired Imp. Medium Armor Plating. 06090_ Acquired Imp. Light Armor Plating. 06115_ System corrupted: Energy discharge (-30). 06144_ EXIT=FOUND 06157_ T2WF/|URVUMI 06161_ Aluminum Leg destroyed. 06176_ Hvy. Particle Gun destroyed. 06177_ System corrupted: Energy discharge (-45). 06179_ Imp. Heat Sink destroyed. 06182_ Imp. Medium Armor Plating destroyed. 06182_ Autogun destroyed. 06182_ Mic. Nuclear Core destroyed. 06188_ Flak Gun destroyed. 06202_ Arc Projector destroyed. 06205_ Imp. Light Armor Plating destroyed. Map ----- +----------------------------------------------------+ | ????????????????????????????????????????????? | | ????????????????????????????????????????????? | | ????????????????????????????????????????????? | | ????????????????????????????????????????????? | | ????????????????????????????????????????????? | | ????????????????????????????????????????????? | | ????????????????????????? ??????????????????? | | ????????????????????????# #####?????????????? | | ????????????????????????# #??????????#### | | ????????????????????????? ???????? | | ????????????????????????? ???????? | | ????????????????????????? ???????? | | ????????????????????????? ??????????##### | | ??????????????Y??????????# #??????????????? | | ?????????????????????????# #??????????????? | | ?????????????????????????# #??????????????? | | ?????????????????????????# #??????????????? | | ?????????????????????????+ +??????????????? | | ?????????????????????????# #??????????????? | | ?????????????????????????# #??????????????? | | ?????????????????????????# #??????????????? | | ?????????????????????????# #?????????????#+ | | ????????################## ############### | | ????????# Y + %+ | | ????????# < Y # # | | ????????# @ # # | | ??????????##################### + !+ | | ??????????????????????????????#######[ ## | | ????????????????????????????????????#] #? | | ????????????????????????????????????########? | | ????????????????????????????????????????????? | | ????????????????????????????????????????????? | | | | | | | | | | | | | | | | | | | | | | | | | | | | | | | | | | | | | +----------------------------------------------------+ Best States ------------- Heat Dissipation 48 Energy Generation 26 Energy Capacity 415 Matter Stores 300 Matter Capacity 300 Sight Range 20 Robot Scan Range 14 Terrain Scan Density 10 Armor Coverage 225 Core Shielding 20 Evasion (%) 55 Targeting Accuracy 8 Target Analysis 5 Armor Integrity Analysis 30 Recoil Reduction 4 Kinecelleration 30 Item Schematics ----------------- None Robot Schematics ------------------ None Fabricated ------------ Nothing Repaired ---------- Nothing Alien Tech Used ----------------- None Achievements -------------- None Challenges ------------ None Game ------ Seed GravjetRainbowBeam Manual? 0 Play Time 01:06:41 Cumulative 15.7 hours Start 2025.09.28 @ 01:52:14 End 2025.09.28 @ 02:56:54 Sessions 1 Manual Loads 0 Difficulty Rogue Special Mode None Game No. 27 Rogue 27 Adventurer 0 Explorer 0 Win Type - Total 0 Types 0/0/0/0/0/0/0/0/0/0 Lore% 7 Gallery% 19 Achievement% 15 Wizard Run 0 Options --------- Layout 0 ASCII 0 Keyboard 1 Movement Arrows Keybinds 0 Fullscreen 1 Font 24/Smallcaps Map View 76x50 Zoom Use 0% Tactical HUD 1 Map Filters NONE Filters NONE Steam 1 RUN: 3acae225-1969-453f-b4cb-59ea70610ed8